bitfinex/quotes_ETHUSD_20250916
["timestamp","ask_amount","ask_price","bid_price","bid_amount"]
[1757981176563,11.13994744,4528.6,4528.5,0.4567]
[1757981177853,11.13994744,4528.6,4528.5,0.7665]
[1757981178053,11.14005065,4528.6,4528.5,0.7665]
[1757981178855,11.34945065,4528.6,4528.5,0.001]
[1757981179580,11.14005065,4528.6,4528.5,0.001]
[1757981179996,11.35185065,4528.6,4528.5,0.001]
[1757981180949,11.14005065,4528.6,4528.5,0.001]
[1757981181463,11.14005065,4528.6,4528.5,0.4583]
[1757981183369,11.14005065,4528.6,4528.5,0.001]
[1757981184324,6.11063672,4528.5,4528.4,0.001]
[1757981184620,7.12579941,4528.5,4528.4,0.4583]
[1757981184973,7.58409941,4528.5,4528.4,0.001]
[1757981185718,7.58409941,4528.5,4528.4,0.4583]
[1757981188316,7.58409941,4528.5,4528.4,0.001]
[1757981188815,7.58409941,4528.5,4528.4,0.4583]
[1757981190118,7.58409941,4528.5,4528.4,0.7653]
[1757981190478,11.25209941,4528.5,4528.4,1.2144]
[1757981191420,11.25209941,4528.5,4528.4,0.7653]
[1757981191593,11.25209941,4528.5,4528.4,0.4583]
[1757981192710,11.25209941,4528.5,4528.4,0.001]
[1757981194212,11.44849941,4528.5,4528.4,0.001]
[1757981195218,11.25209941,4528.5,4528.4,0.001]
[1757981195514,11.25209941,4528.5,4528.4,0.4583]
[1757981195811,11.25209941,4528.5,4528.4,0.001]
[1757981197383,11.44849941,4528.5,4528.4,0.001]
[1757981199005,6.00028548,4528.4,4528.3,0.001]
[1757981199312,6.00038302,4528.2,4528.1,0.02]
[1757981199610,10.68354571,4528.2,4528.1,0.02]
[1757981199918,10.68354571,4528.2,4528.1,0.327]
[1757981200211,11.3477129,4528.2,4528.1,0.327]
[1757981200412,11.3477129,4528.2,4528.1,0.7843]
[1757981200618,11.3477129,4528.2,4528.1,1.2334]
[1757981201029,11.46317188,4528.2,4528.1,1.2334]
[1757981201811,11.46317188,4528.2,4528.1,0.02]
[1757981202844,11.46317188,4528.2,4528.1,0.4773]
[1757981203149,11.46317188,4528.2,4528.1,0.4783]
[1757981203508,13.16217188,4528.2,4528.1,0.7853]
[1757981203705,13.16217188,4528.2,4528.1,1.2344]
[1757981204930,13.16217188,4528.2,4528.1,0.7853]
[1757981205723,13.16217188,4528.2,4528.1,1.2344]
[1757981208343,13.16217188,4528.2,4528.1,0.7853]
[1757981208552,13.16217188,4528.2,4528.1,0.4783]
[1757981208754,13.16217188,4528.2,4528.1,0.021]
[1757981209261,13.16217188,4528.2,4528.1,0.4783]
[1757981211249,13.16217188,4528.2,4528.1,0.7791]
[1757981211462,13.16217188,4528.2,4528.1,1.2312]
[1757981211664,13.16217188,4528.2,4528.1,0.4783]
[1757981212184,13.16217188,4528.2,4528.1,0.7791]
[1757981212342,13.16217188,4528.2,4528.1,1.2312]
[1757981212544,13.47257188,4528.2,4528.1,0.021]
[1757981212754,13.47278505,4528.2,4528.1,0.021]
[1757981213155,13.16238505,4528.2,4528.1,0.021]
[1757981213337,13.16238505,4528.2,4528.1,0.5065]
[1757981213945,13.16238505,4528.2,4528.1,0.8073]
[1757981214965,13.16238505,4528.2,4528.1,1.2716]
[1757981217757,13.16238505,4528.2,4528.1,0.07691453]
[1757981217960,13.16238505,4528.2,4528.0,20.001]
[1757981217961,6.11083179,4528.1,4528.0,20.001]
[1757981218161,7.12620765,4528.1,4528.0,20.001]
[1757981218482,7.12620765,4528.1,4528.0,20.2963]
[1757981219181,7.79038366,4528.1,4528.0,20.2963]
[1757981219475,8.98207123,4528.1,4528.0,20.2963]
[1757981219652,12.65007123,4528.1,4528.0,20.2963]
[1757981219979,12.65007123,4528.1,4528.0,20.7591]
[1757981220479,11.45838366,4528.1,4528.0,20.7591]
[1757981221583,11.45838366,4528.1,4528.0,21.2234]
[1757981221968,7.79038366,4528.1,4528.0,21.2234]
[1757981222174,11.33418314,4528.1,4528.0,21.2234]
[1757981222481,11.04448827,4528.1,4528.0,20.7591]
[1757981222778,10.92034864,4528.1,4528.0,20.7591]
[1757981222988,11.04448828,4528.1,4528.0,20.7591]
[1757981223208,11.80198828,4528.1,4528.0,20.001]
[1757981223486,12.27578828,4528.1,4528.0,20.001]
[1757981223692,12.09164866,4528.1,4528.0,20.001]
[1757981223886,11.62364866,4528.1,4528.0,20.001]
[1757981224072,12.40153621,4528.1,4528.0,20.001]
[1757981224274,12.11203621,4528.1,4528.0,20.001]
[1757981225492,12.649989,4528.1,4528.0,20.001]
[1757981225688,12.939489,4528.1,4528.0,20.001]
[1757981225879,12.649989,4528.1,4528.0,20.001]
[1757981226687,12.939489,4528.1,4528.0,20.001]
[1757981226895,13.407489,4528.1,4528.0,20.001]
[1757981227089,12.939489,4528.1,4528.0,20.001]
[1757981227268,12.93947851,4528.1,4528.0,20.001]
[1757981227682,12.64997851,4528.1,4528.0,20.001]
[1757981228087,12.52583556,4528.1,4528.0,20.001]
[1757981228294,12.64997248,4528.1,4528.0,20.001]
[1757981228591,12.93947248,4528.1,4528.0,20.001]
[1757981228797,13.88127248,4528.1,4528.0,20.001]
[1757981230894,13.40747248,4528.1,4528.0,20.001]
[1757981231599,13.88127248,4528.1,4528.0,20.001]
[1757981232296,12.93947248,4528.1,4528.0,20.001]
[1757981235788,12.64997248,4528.1,4528.0,20.001]
[1757981237289,12.93947248,4528.1,4528.0,20.001]
[1757981237604,13.88127248,4528.1,4528.0,20.001]
[1757981241202,13.40747248,4528.1,4528.0,20.001]
[1757981242159,12.64997248,4528.1,4528.0,20.001]
[1757981242391,12.65197248,4528.1,4528.0,20.3114]
[1757981242683,12.65197248,4528.1,4528.0,21.2341]
[1757981243461,12.65197248,4528.1,4528.0,20.7893]
[1757981244191,11.46028491,4528.1,4528.0,20.7893]
[1757981245080,7.79228491,4528.1,4528.0,20.7893]
[1757981245295,11.46028491,4528.1,4528.0,20.7893]
[1757981245596,7.79228491,4528.1,4528.0,20.7893]
[1757981245777,12.65197248,4528.1,4528.0,20.7893]
[1757981246186,12.65197248,4528.1,4528.0,20.001]
[1757981251021,12.65123058,4528.1,4528.0,20.001]
[1757981255709,12.96113058,4528.1,4528.0,20.001]
[1757981259626,12.96013058,4528.1,4528.0,20.001]
[1757981259945,13.91153058,4528.1,4528.0,20.001]
[1757981261098,13.43773058,4528.1,4528.0,20.001]
[1757981261538,12.96013058,4528.1,4528.0,20.001]
[1757981261745,12.65023058,4528.1,4528.0,20.001]
[1757981266000,14.34923058,4528.1,4528.0,20.001]
[1757981266206,14.34923058,4528.1,4528.0,20.4789]
[1757981266746,14.34923388,4528.1,4528.0,20.4789]
[1757981267104,14.34923388,4528.1,4528.0,20.001]
[1757981267642,14.34920996,4528.1,4528.0,20.001]
[1757981271058,10.68220996,4528.1,4528.0,20.2959]
[1757981271266,14.34920996,4528.1,4528.0,20.7555]
[1757981271668,13.15752239,4528.1,4528.0,20.7555]
[1757981272029,14.34920996,4528.1,4528.0,20.7555]
[1757981272458,13.15752239,4528.1,4528.0,20.7555]
[1757981273257,9.49052239,4528.1,4528.0,20.7555]
[1757981273464,13.15752239,4528.1,4528.0,20.7555]
[1757981275230,13.15752239,4528.1,4528.0,20.001]
[1757981276063,9.49052239,4528.1,4528.0,20.001]
[1757981276268,13.15744669,4528.1,4528.0,20.001]
[1757981279070,13.15744669,4528.1,4528.0,20.8013]
[1757981279841,9.49044669,4528.1,4528.0,21.2425]
[1757981280036,12.61961004,4528.1,4528.0,21.2425]
[1757981280352,13.15742292,4528.1,4528.0,21.2425]
[1757981281776,13.15742292,4528.1,4528.0,20.8013]
[1757981282483,9.49042292,4528.1,4528.0,20.8013]
[1757981282679,13.15742292,4528.1,4528.0,20.8013]
[1757981288024,9.49042292,4528.1,4528.0,20.8013]
[1757981288316,9.36442292,4528.1,4528.0,23.36675]
[1757981288477,10.15642292,4528.1,4528.0,23.36675]
[1757981288999,9.36442292,4528.1,4528.0,23.36675]
[1757981289178,10.75191223,4528.1,4528.0,23.36675]
[1757981289378,10.15642292,4528.1,4528.0,23.36675]
[1757981290999,10.15642292,4528.1,4528.0,22.92555]
[1757981291205,9.94957181,4528.1,4528.0,23.36675]
[1757981295221,6.28357181,4528.1,4528.0,23.36675]
[1757981295540,9.47296957,4528.1,4528.0,23.36675]
[1757981295830,9.94957181,4528.1,4528.0,23.36675]
[1757981296331,9.94957181,4528.1,4528.0,22.92555]
[1757981296498,9.94957181,4528.1,4528.0,22.12525]
[1757981297104,10.24857181,4528.1,4528.0,22.12525]
[1757981297308,10.73757181,4528.1,4528.0,20.001]
[1757981297508,11.3922505,4528.1,4528.0,20.001]
[1757981298098,11.98773981,4528.1,4528.0,20.001]
[1757981300038,11.3922505,4528.1,4528.0,20.001]
[1757981300194,11.98773981,4528.1,4528.0,20.001]
[1757981300714,11.05063981,4528.1,4528.0,20.001]
[1757981301749,11.54709345,4528.1,4528.0,20.001]
[1757981302060,12.00739345,4528.1,4528.0,20.001]
[1757981302542,11.05049345,4528.1,4528.0,20.001]
[1757981302705,11.0502556,4528.1,4528.0,20.001]
[1757981303235,10.7512556,4528.1,4528.0,20.7836]
[1757981303537,10.15576629,4528.1,4528.0,22.86196]
[1757981303739,10.15577539,4528.1,4528.0,22.86196]
[1757981304443,9.9491967,4528.1,4528.0,22.86196]
[1757981308246,6.2831967,4528.1,4528.0,20.7836]
[1757981308450,10.45415132,4528.1,4528.0,20.001]
[1757981308755,10.15585146,4528.1,4528.0,20.4744]
[1757981308935,10.15585146,4528.1,4528.0,20.001]
[1757981309138,10.45415146,4528.1,4528.0,20.001]
[1757981309337,10.95075146,4528.1,4528.0,20.001]
[1757981309878,11.41105146,4528.1,4528.0,20.001]
[1757981313282,11.41122939,4528.1,4528.0,20.001]
[1757981316145,14.41122939,4528.1,4528.0,20.001]
[1757981317048,14.20452964,4528.1,4528.0,20.001]
[1757981317267,14.41127221,4528.1,4528.0,20.001]
[1757981317853,19.53041418,4528.1,4528.0,20.001]
[1757981319859,18.67710436,4528.1,4528.0,20.001]
[1757981321079,18.67679681,4528.1,4528.0,20.001]
[1757981328595,18.34624015,4528.1,4528.0,20.001]
[1757981328767,18.67644487,4528.1,4528.0,20.001]
[1757981337899,18.79190912,4528.1,4528.0,20.001]
[1757981338403,19.98359669,4528.1,4528.0,20.001]
[1757981340472,19.98359669,4528.1,4528.0,17.77168139]
[1757981340678,0.792,4527.8,4527.6,0.001]
[1757981340887,12.5297745,4527.7,4527.6,0.001]
[1757981341092,13.94185976,4527.7,4527.6,0.001]
[1757981341507,14.41485976,4527.7,4527.6,0.001]
[1757981341708,16.62348665,4527.7,4527.6,0.001]
[1757981341914,17.81285323,4527.7,4527.6,0.001]
[1757981342091,16.60725323,4527.7,4527.6,0.001]
[1757981342419,17.81285323,4527.7,4527.6,0.001]
[1757981345196,3.00091961,4527.1,4527.0,1e-08]
[1757981345422,20.91001152,4527.1,4527.0,1e-08]
[1757981345626,22.11561152,4527.1,4527.0,1e-08]
[1757981345929,22.56861152,4527.1,4527.0,1e-08]
[1757981346124,3.792,4526.9,4526.8,1e-08]
[1757981346325,8.47142761,4526.9,4526.8,1e-08]
[1757981346531,13.07481644,4526.9,4526.8,1e-08]
[1757981346934,13.52781644,4526.9,4526.8,1e-08]
[1757981347143,12.33904481,4526.9,4526.8,1e-08]
[1757981348028,2.20935884,4526.2,4526.1,0.02]
[1757981348238,11.49023638,4526.2,4526.1,0.02]
[1757981348434,12.66668645,4526.2,4526.1,0.02]
[1757981348731,13.58868645,4526.2,4526.1,0.02]
[1757981348926,14.04758645,4526.2,4526.1,0.02]
[1757981349428,13.58778645,4526.2,4526.1,0.02]
[1757981349810,14.04758645,4526.2,4526.1,0.02]
[1757981350127,14.64104935,4526.2,4526.1,0.02]
[1757981350704,14.18124935,4526.2,4526.1,0.02]
[1757981350934,13.72234935,4526.2,4526.1,0.02]
[1757981351237,13.43544935,4526.2,4526.1,0.02]
[1757981351629,13.72234935,4526.2,4526.1,0.02]
[1757981352144,13.72193792,4526.2,4526.1,0.02]
[1757981352644,13.43503792,4526.2,4526.1,0.02]
[1757981353250,14.64063792,4526.2,4526.1,0.02]
[1757981354343,6.00184707,4525.2,4525.1,0.473]
[1757981354509,14.05955676,4525.2,4525.1,0.473]
[1757981354712,14.536159,4525.2,4525.1,0.7845]
[1757981354932,14.74192894,4525.2,4525.1,0.7845]
[1757981355137,15.21492894,4525.2,4525.1,0.7845]
[1757981355342,15.009159,4525.2,4525.1,0.7845]
[1757981356049,15.011159,4525.2,4525.1,1.2467]
[1757981358139,14.53455676,4525.2,4525.1,1.2467]
[1757981358343,14.53455676,4525.2,4525.1,0.7845]
[1757981361646,14.53455676,4525.2,4525.1,0.3315]
[1757981362414,14.53455676,4525.2,4525.1,0.8163]
[1757981362617,14.53455676,4525.2,4525.1,0.3315]
[1757981362813,14.53455676,4525.2,4525.1,0.02]
[1757981364350,14.53455676,4525.2,4525.1,0.8134]
[1757981364731,14.53455676,4525.2,4525.1,0.8144]
[1757981365254,15.00815082,4525.2,4525.1,0.8144]
[1757981366120,15.00815082,4525.2,4525.1,0.3296]
[1757981366337,15.00815082,4525.2,4525.1,0.8144]
[1757981366721,15.00815082,4525.2,4525.1,0.3296]
[1757981367052,15.00815082,4525.2,4525.1,0.021]
[1757981368152,15.52909164,4525.2,4525.1,0.021]
[1757981368552,11.54389164,4525.2,4525.1,0.3296]
[1757981368752,15.21289164,4525.2,4525.1,0.8144]
[1757981370662,15.21251336,4525.2,4525.1,0.8144]
[1757981372394,15.99391336,4525.2,4525.1,0.021]
[1757981372743,15.52771336,4525.2,4525.1,0.021]
[1757981373184,15.21251336,4525.2,4525.1,0.021]
[1757981373677,16.48531336,4525.2,4525.1,0.021]
[1757981373981,15.99391336,4525.2,4525.1,0.021]
[1757981374199,11.54351336,4525.2,4525.1,0.021]
[1757981374358,15.41769693,4525.2,4525.1,0.021]
[1757981374560,16.69049693,4525.2,4525.1,0.021]
[1757981375098,17.28319559,4525.2,4525.1,0.021]
[1757981375447,16.69049693,4525.2,4525.1,0.021]
[1757981375945,16.80603361,4525.2,4525.1,0.021]
[1757981376178,17.59808241,4525.2,4525.1,0.021]
[1757981377560,16.80665564,4525.2,4525.1,0.021]
[1757981381884,17.66638282,4525.2,4525.1,0.021]
[1757981383301,18.85445603,4525.2,4525.1,0.021]
[1757981384167,11.58322349,4525.2,4525.1,0.021]
[1757981384363,11.26802349,4525.2,4525.1,0.021]
[1757981385141,6.80802349,4525.2,4525.1,1.284]
[1757981385339,11.26802349,4525.2,4525.1,1.284]
[1757981385540,12.06103474,4525.2,4525.1,1.284]
[1757981387904,11.26802349,4525.2,4525.1,1.284]
[1757981388140,12.06103474,4525.2,4525.1,1.284]
[1757981388341,5.39017642,4525.2,4525.1,1.284]
[1757981388548,1.59817642,4525.2,4525.1,1.4204]
[1757981388752,0.23389926,4525.2,4525.1,1.4204]
[1757981389448,1.02589926,4525.2,4525.1,1.4204]
[1757981389650,0.23389926,4525.2,4525.1,1.4204]
[1757981391335,0.1104,4525.2,4525.1,1.4204]
[1757981394042,0.9024,4525.2,4525.1,1.4204]
[1757981394238,0.1104,4525.2,4525.1,1.4204]
[1757981394552,0.9024,4525.6,4525.1,1.4204]
[1757981394747,1.02589926,4525.6,4525.2,1.07768999]
[1757981394952,0.9024,4525.6,4525.2,1.07768999]
[1757981395163,0.9024,4525.6,4525.5,0.313]
[1757981395458,0.9024,4525.6,4525.5,1.2354]
[1757981400391,3.11205175,4525.6,4525.5,0.7877]
[1757981400557,0.9024,4525.6,4525.5,0.7877]
[1757981400759,0.9024,4525.6,4525.2,14.65528999]
[1757981400951,0.9024,4525.6,4525.3,1.942329]
[1757981401156,0.9024,4525.6,4525.4,0.4747]
[1757981401621,0.9024,4525.6,4525.1,14.521]
[1757981401902,0.792,4525.3,4525.1,14.9957]
[1757981402263,0.792,4525.3,4525.1,0.4957]
[1757981403465,1.261,4525.3,4525.1,0.021]
[1757981403665,3.93920413,4525.3,4525.1,0.021]
[1757981404009,4.25204707,4525.2,4525.1,0.021]
[1757981404206,0.9024,4525.2,4525.1,0.4957]
[1757981404364,0.9024,4525.2,4525.1,0.8087]
[1757981404565,0.9024,4525.2,4525.1,0.021]
[1757981405009,3.11224707,4525.2,4525.1,0.021]
[1757981407103,3.58694707,4525.2,4525.1,0.021]
[1757981407870,3.89974707,4525.2,4525.1,0.021]
[1757981408395,4.83714707,4525.2,4525.1,0.021]
[1757981408701,4.96071296,4525.2,4525.1,0.021]
[1757981410580,4.48601296,4525.2,4525.1,0.021]
[1757981411210,4.57461037,4525.2,4525.1,0.021]
[1757981411667,4.57467678,4525.2,4525.1,0.021]
[1757981412600,5.04955435,4525.2,4525.1,0.021]
[1757981413113,5.04955437,4525.2,4525.1,0.021]
[1757981413706,5.255712,4525.2,4525.1,0.021]
[1757981413901,5.25570826,4525.2,4525.1,0.021]
[1757981415203,4.00550826,4525.2,4525.1,0.021]
[1757981415510,5.25570826,4525.2,4525.1,0.021]
[1757981420507,5.13207596,4525.2,4525.1,0.021]
[1757981420712,5.25588961,4525.2,4525.1,0.021]
[1757981426039,4.00568961,4525.2,4525.1,0.7764]
[1757981426904,4.00568961,4525.2,4525.1,0.3229]
[1757981427105,4.00568961,4525.2,4525.1,0.021]
[1757981427541,4.00568961,4525.2,4525.1,0.3229]
[1757981427712,4.00568961,4525.2,4525.1,0.7764]
[1757981429401,4.00568961,4525.2,4525.1,0.021]
[1757981431323,4.21224855,4525.2,4525.1,0.021]
[1757981437767,4.21224855,4525.2,4525.1,0.7764]
[1757981437934,7.88024855,4525.2,4525.1,0.7764]
[1757981438336,7.88024855,4525.2,4525.1,0.021]
[1757981439049,8.19194855,4525.2,4525.1,0.021]
[1757981439245,9.11284855,4525.2,4525.1,0.021]
[1757981442877,8.19194855,4525.2,4525.1,0.021]
[1757981446274,4.21224855,4525.2,4525.1,0.3229]
[1757981446440,7.40437096,4525.2,4525.1,0.7764]
[1757981446769,7.87924855,4525.2,4525.1,0.7764]
[1757981447175,4.21224855,4525.2,4525.1,0.7764]
[1757981447477,7.40437096,4525.2,4525.1,0.7764]
[1757981447684,4.21224855,4525.2,4525.1,0.7764]
[1757981447898,7.40437096,4525.2,4525.1,0.7764]
[1757981448068,7.87924855,4525.2,4525.1,0.7764]
[1757981448382,0.23421365,4525.2,4525.1,1.37771999]
[1757981448543,1.02621365,4525.2,4525.1,1.37771999]
[1757981448873,0.23421365,4525.2,4525.1,1.37771999]
[1757981449293,1.02621365,4525.2,4525.1,1.37771999]
[1757981449483,0.9024,4525.2,4525.1,1.37771999]
[1757981450001,1.02621365,4525.2,4525.1,1.37771999]
[1757981450185,0.9024,4525.2,4525.1,1.37771999]
[1757981451363,0.9024,4525.2,4525.1,15.87771999]
[1757981455391,0.9024,4525.2,4525.1,15.41161999]
[1757981456805,0.9024,4525.2,4525.1,0.45811999]
[1757981457107,2.0985,4525.2,4525.1,0.021]
[1757981457898,2.22231365,4525.2,4525.1,0.021]
[1757981458615,2.0985,4525.2,4525.1,0.021]
[1757981459130,4.30834707,4525.2,4525.1,0.021]
[1757981459418,0.91584,4525.2,4525.1,0.814]
[1757981459579,0.792,4525.2,4525.1,0.814]
[1757981460499,0.792,4525.2,4525.1,0.021]
[1757981463680,1.5486,4525.2,4525.1,0.021]
[1757981464617,1.0907,4525.2,4525.1,0.021]
[1757981465315,0.792,4525.2,4525.1,0.3151]
[1757981465521,0.792,4525.2,4525.1,0.814]
[1757981466585,0.792,4525.2,4525.1,0.021]
[1757981467616,1.0907,4525.2,4525.1,0.021]
[1757981467820,1.9881,4525.2,4525.1,0.021]
[1757981468835,4.19794707,4525.2,4525.1,0.021]
[1757981469131,4.3217817,4525.2,4525.1,0.021]
[1757981470797,7.9887817,4525.2,4525.1,0.021]
[1757981471001,8.07738578,4525.2,4525.1,0.021]
[1757981472214,8.28381477,4525.2,4525.1,0.021]
[1757981472414,8.75948621,4525.2,4525.1,0.021]
[1757981474540,8.28381477,4525.2,4525.1,0.021]
[1757981475043,8.7595288,4525.2,4525.1,0.021]
[1757981475221,8.75955102,4525.2,4525.1,0.021]
[1757981477946,11.96598249,4525.2,4525.1,0.021]
[1757981478312,12.08151891,4525.2,4525.1,0.021]
[1757981480651,11.64201891,4525.2,4525.1,0.021]
[1757981480858,12.09301891,4525.2,4525.1,0.021]
[1757981500807,0.44580004,4525.2,4525.1,1.2429]
[1757981500952,0.1104,4525.3,4525.1,1.82642754]
[1757981501153,0.1104,4525.3,4525.2,0.9257]
[1757981501592,0.1104,4525.3,4525.2,1.2219]
[1757981505601,3.11219824,4525.3,4525.2,1.2219]
[1757981505794,3.11219824,4525.3,4525.2,2.85233286]
[1757981506868,3.11219824,4525.3,4525.1,0.58242859]
[1757981506869,2.20984707,4525.2,4525.1,0.021]
[1757981507071,6.91976357,4525.2,4525.1,0.021]
[1757981507479,6.46876357,4525.2,4525.1,0.021]
[1757981508411,6.00156357,4525.2,4525.1,0.021]
[1757981510016,7.20326357,4525.2,4525.1,0.021]
[1757981510715,7.99526357,4525.2,4525.1,0.021]
[1757981510874,8.49276357,4525.2,4525.1,0.021]
[1757981518630,7.29106357,4525.2,4525.1,0.782]
[1757981522704,6.79256357,4525.2,4525.1,1.2341]
[1757981523936,6.79256357,4525.2,4525.1,0.782]
[1757981525330,6.79256357,4525.2,4525.1,1.2341]
[1757981525630,4.5827165,4525.2,4525.1,1.2341]
[1757981526632,6.79256357,4525.2,4525.1,1.2341]
[1757981526833,6.79256357,4525.2,4525.1,0.782]
[1757981527042,3.12556357,4525.2,4525.1,0.782]
[1757981527335,3.12566389,4525.2,4525.1,0.782]
[1757981528548,3.12566389,4525.2,4525.1,0.021]
[1757981528722,3.12566389,4525.2,4525.1,0.4928]
[1757981529416,3.12566389,4525.2,4525.1,0.782]
[1757981531414,4.34286389,4525.2,4525.1,0.021]
[1757981531844,5.02509537,4525.2,4525.1,0.021]
[1757981532342,5.11370632,4525.2,4525.1,0.021]
[1757981536158,5.32027433,4525.2,4525.1,0.021]
[1757981536335,5.32052403,4525.2,4525.1,0.021]
[1757981536857,5.32052301,4525.2,4525.1,0.021]
[1757981540135,5.32050966,4525.2,4525.1,0.021]
[1757981540573,8.32050966,4525.2,4525.1,0.021]
[1757981547489,8.32041589,4525.2,4525.1,0.021]
[1757981554309,7.10321589,4525.2,4525.1,0.021]
[1757981554601,7.10321589,4525.2,4525.1,0.5199]
[1757981554981,7.10321589,4525.2,4525.1,0.021]
[1757981556205,7.40601589,4525.2,4525.1,0.021]
[1757981558709,8.34511589,4525.2,4525.1,0.021]
[1757981562815,13.46697264,4525.2,4525.1,0.021]
[1757981563112,14.06113286,4525.2,4525.1,0.021]
[1757981565819,13.21007079,4525.2,4525.1,0.021]
[1757981566310,12.61591057,4525.2,4525.1,0.021]
[1757981566616,13.52430287,4525.2,4525.1,0.021]
[1757981568397,12.73144614,4525.2,4525.1,0.021]
[1757981569333,3.00199359,4524.9,4524.8,0.08]
[1757981569495,14.86491393,4524.9,4524.8,0.08]
[1757981569834,16.78914344,4524.9,4524.8,0.08]
[1757981570035,17.30904344,4524.9,4524.8,0.08]
[1757981571322,16.71434614,4524.9,4524.8,0.08]
[1757981572438,16.71434614,4524.9,4524.8,0.081]
[1757981573338,17.30885059,4524.9,4524.8,0.081]
[1757981574827,17.30868908,4524.9,4524.8,0.081]
[1757981576343,16.71418463,4524.9,4524.8,0.081]
[1757981577028,17.30866302,4524.9,4524.8,0.081]
[1757981578514,17.30864018,4524.9,4524.8,0.081]
[1757981579849,16.71416179,4524.9,4524.8,0.081]
[1757981580511,17.30854785,4524.9,4524.8,0.081]
[1757981581316,17.26344785,4524.9,4524.8,0.081]
[1757981581516,16.06664785,4524.9,4524.8,0.081]
[1757981581728,16.06664785,4524.9,4524.8,0.5721]
[1757981582452,16.06664785,4524.9,4524.8,0.081]
[1757981582758,16.35804785,4524.9,4524.8,0.081]
[1757981583458,16.35904785,4524.9,4524.8,0.081]
[1757981583956,16.85184785,4524.9,4524.8,0.081]
[1757981584381,17.27964785,4524.9,4524.8,0.081]
[1757981584683,17.27940344,4524.9,4524.8,0.081]
[1757981585182,17.2794112,4524.9,4524.8,0.081]
[1757981587547,17.27936025,4524.9,4524.8,0.081]
[1757981589191,17.27934408,4524.9,4524.8,0.081]
[1757981590052,16.68495802,4524.9,4524.8,0.081]
[1757981592960,16.68492572,4524.9,4524.8,0.081]
[1757981594888,17.47778245,4524.9,4524.8,0.081]
[1757981595191,17.8243555,4524.9,4524.8,0.081]
[1757981599495,17.82426858,4524.9,4524.8,0.081]
[1757981600296,17.83876858,4524.9,4524.8,1e-08]
[1757981600590,17.04599877,4524.9,4524.8,1e-08]
[1757981606306,16.60369877,4524.9,4524.8,1e-08]
[1757981606605,23.67369877,4524.9,4524.8,1e-08]
[1757981607211,23.67269877,4524.9,4524.8,1e-08]
[1757981607699,24.11499877,4524.9,4524.8,1e-08]
[1757981608271,24.11502543,4524.9,4524.8,1e-08]
[1757981609906,25.30309864,4524.9,4524.8,1e-08]
[1757981614978,6.00209127,4524.7,4524.6,0.001]
[1757981615178,10.68235538,4524.7,4524.6,0.001]
[1757981615378,10.68235538,4524.7,4524.6,0.3139]
[1757981615913,11.26710662,4524.7,4524.6,0.3139]
[1757981619482,11.26710662,4524.7,4524.6,1e-08]
[1757981619677,6.00223782,4524.4,4524.3,0.001]
[1757981619916,16.65329661,4524.4,4524.3,0.001]
[1757981620084,16.65329661,4524.4,4524.3,0.3139]
[1757981620284,17.14019661,4524.4,4524.3,0.3139]
[1757981621505,13.47219661,4524.4,4524.3,0.3139]
[1757981621709,17.14019661,4524.4,4524.3,0.3139]
[1757981623139,17.57854202,4524.4,4524.3,0.3139]
[1757981624623,17.57854202,4524.4,4524.3,0.001]
[1757981626212,17.37225912,4524.4,4524.3,0.001]
[1757981626416,17.57849426,4524.4,4524.3,0.001]
[1757981627953,18.43456865,4524.4,4524.3,0.001]
[1757981629553,9.20128088,4524.4,4524.3,0.8008]
[1757981629717,12.86928088,4524.4,4524.3,0.8008]
[1757981631127,12.53923203,4524.4,4524.3,0.8008]
[1757981631413,9.20140843,4524.4,4524.3,1.1399]
[1757981631643,13.46278898,4524.4,4524.3,1.1399]
[1757981633844,13.46278898,4524.4,4524.3,0.8008]
[1757981635024,6.99117061,4524.4,4524.3,0.8008]
[1757981635234,2.99281493,4524.4,4524.3,0.8008]
[1757981635444,5.9777134,4524.4,4524.3,1.1399]
[1757981635644,5.9777134,4524.4,4524.3,1.25589]
[1757981635944,5.4908134,4524.4,4524.3,1.25589]
[1757981636141,5.367,4524.4,4524.3,1.25589]
[1757981636344,6.159,4524.4,4524.3,1.25589]
[1757981639423,4.459,4524.4,4524.3,1.25589]
[1757981642238,4.5694,4524.4,4524.3,1.25589]
[1757981643051,0.9024,4524.4,4524.3,1.25589]
[1757981643453,0.9024,4524.4,4524.3,0.91679]
[1757981644362,0.9024,4524.4,4524.3,1.25589]
[1757981646659,0.9024,4524.4,4524.3,0.91679]
[1757981651683,0.9024,4524.4,4524.3,0.42989]
[1757981653692,0.9024,4524.4,4524.3,0.3139]
[1757981659399,0.9024,4524.4,4524.3,0.001]
[1757981660701,1.3756,4524.4,4524.3,0.001]
[1757981662398,0.9024,4524.4,4524.3,0.001]
[1757981665008,1.8395,4524.4,4524.3,0.001]
[1757981665998,1.3756,4524.4,4524.3,0.001]
[1757981666196,1.3756,4524.4,4524.3,1.4531]
[1757981666398,0.9024,4524.4,4524.3,1.739]
[1757981666582,0.9024,4524.4,4524.3,0.2869]
[1757981666784,0.9024,4524.4,4524.3,0.001]
[1757981666998,2.1388,4524.4,4524.3,0.001]
[1757981682683,0.9024,4524.4,4524.3,0.2869]
[1757981682889,0.9024,4524.4,4524.3,1.81628]
[1757981683057,0.002,4524.6,4524.5,2.21018897]
[1757981683250,0.002,4524.6,4524.5,3.34419085]
[1757981683952,0.002,4524.6,4524.5,3.45459085]
[1757981684146,0.002,4524.6,4524.5,4.60716139]
[1757981684351,0.002,4524.6,4524.5,4.67365318]
[1757981686280,0.002,4524.6,4524.5,19.17365318]